Cogmind - Beta 17.1 @@@ ROGUE MODE // 2026.08.31 @ 19:35:54 Player: AnotherZach Result: Destroyed by as-89707 with Assembled Heavy Rifle Performance ------------- Evolutions (0) 0 Regions Visited (4) 800 Robots Destroyed (38) 190 Value Destroyed (667) 667 Prototype IDs (23) 460 Alien Tech Used (0) 0 Bonus (325) 325 TOTAL SCORE: 2442 Bonus ------- Follower Combat Kills 25 Aligned with FarCom 300 Cogmind --------- Core Integrity 0/250 Matter 220/300 Energy 222/240 System Corruption 4% Temperature Cool (56) Movement Rolling (155) Ox5 Location -9/Mines Parts ------- > --- POWER (1) -------- Nuclear Core > --- PROPULSION (2) --- Light Treads Wheel > --- UTILITY (2) ------ High-capacity Storage Unit Reflective Plating > --- WEAPON (2) ------- Beam Cannon Ripper > --- INVENTORY (20) --- Light Treads Light Treads Titanium Leg Cesium-ion Thruster Medium Storage Unit Large Storage Unit Sensor Array Signal Interpreter Improved Terrain Scanner Improved Trap Extractor (0/6) Trap Reconfigurator Flak Cannon Peak State ------------ > --- POWER ------------ Nuclear Core > --- PROPULSION ------- Light Treads Light Treads > --- UTILITY ---------- Improved Heat Sink High-capacity Storage Unit > --- WEAPON ----------- Ripper > --- INVENTORY -------- Light Ion Engine Nuclear Core Reinforced Deuterium Engine Fission Core Light Treads Light Treads Titanium Leg Wheel Wheel Wheel Cesium-ion Thruster Sensor Array Signal Interpreter Improved Terrain Scanner Reflective Plating Improved Trap Extractor Trap Reconfigurator Beam Cannon Beam Cannon Flak Cannon [Rating: 18] Favorites ----------- Power Ion Engine Engine Ion Engine Power Core Nuclear Core Propulsion Light Treads Treads Light Treads Wheel Wheel Utility High-capacity Storage Unit Device Heat Sink Storage High-capacity Storage Unit Protection Reflective Plating Weapon Medium Laser Energy Gun Medium Laser Energy Cannon Beam Cannon Ballistic Gun Assault Rifle Impact Weapon Hammer Slashing Weapon Ripper Build | -11 -10 -10 -10 -9 ------- Run | Yrd Mat Min Exi Min Slots Evolved . | . . . . . Power . | . . . . . Propulsion . | . . . . . Utility . | . . . . . Weapon . | . . . . . Parts Attached 22 | 7 7 4 . 4 Power 2 | 1 . 1 . . Engine 1 | 1 . . . . Core 1 | . . 1 . . Reactor . | . . . . . Propulsion 7 | 2 2 . . 3 Treads 5 | 2 2 . . 1 Leg . | . . . . . Wheel 2 | . . . . 2 Hover . | . . . . . Flight . | . . . . . Utility 6 | 2 2 1 . 1 Device 3 | 1 1 1 . . Storage 2 | 1 1 . . . Processor . | . . . . . Hackware . | . . . . . Protection 1 | . . . . 1 Artifact . | . . . . . Weapon 7 | 2 3 2 . . Energy Gun 2 | 1 1 . . . Energy Cannon 2 | . 1 1 . . Ballistic Gun 1 | 1 . . . . Ballistic Cannon . | . . . . . Launcher . | . . . . . Special Weapon . | . . . . . Impact Weapon 1 | . 1 . . . Slashing Weapon 1 | . . 1 . . Piercing Weapon . | . . . . . Special Melee Weapon . | . . . . . Unidentified Prototypes . | . . . . . Parts Lost 4 | . . . . 4 Power . | . . . . . Propulsion 2 | . . . . 2 Utility 1 | . . . . 1 Weapon 1 | . . . . 1 Highest Loss Streak 2 | . . . . 2 To Critical Strikes . | . . . . . Average Backups 16 | 4 14 19 19 15 Power 1 | . . 1 3 . Propulsion 6 | 3 6 7 6 4 Utility 4 | . 3 6 5 7 Weapon 3 | . 3 4 3 2 Tool/Special . | . . . . . Unused Backups 23 | . 1 4 5 13 Power 4 | . . . 1 3 Propulsion 5 | . . 1 2 2 Utility 10 | . . 2 1 7 Weapon 4 | . 1 1 1 1 Tool/Special . | . . . . . Average Slot Usage (%) 96 | . 100 100 85 84 Engine 8 | . 14 4 . . Core 5 | . . 9 14 14 Treads 27 | . 28 28 28 11 Device 13 | . 14 14 14 2 Storage 14 | . 14 14 14 14 Energy Gun 12 | . 21 2 . . Energy Cannon 6 | . 2 25 . 3 Impact Weapon 1 | . 2 . . . Slashing Weapon 3 | . . . 14 14 Peak Build Rating 18 | 8 9 17 18 18 Average Rating 11 | 5 8 12 17 15 On Entrance 10 | . 8 9 16 18 Avg Prop Armor Cover (%) 10 | . . . . 10 Naked Turns . | . . . . . Heaviest Build 57 | 15 51 54 51 57 Greatest Support 40 | 40 40 40 40 40 Greatest Overweight (x) 5 | . 1 1 1 5 Average Overweight (x) . | . . 1 1 2 Largest Inventory Capacity 20 | 8 20 20 20 20 Average Capacity 17 | 7 16 20 20 20 Most Carried 20 | 8 20 20 20 20 Average Carried 16 | 5 14 19 19 15 Final Capacity 20 | 8 20 20 20 20 Final Carried 20 | 8 20 20 20 12 Class Distribution -------------------- 88% | Mutant 11% | Scavenger-Mutant Dominant Class ---------------- Mutant | -10/Materials Mutant | -10/Mines Mutant | -10/Exiles Mutant | -9/Mines Resources | -11 -10 -10 -10 -9 ----------- Run | Yrd Mat Min Exi Min Matter Collected 466 | 288 102 76 . . Remotely 157 | 105 52 . . . Salvage Created 1173 | 95 594 484 . . Parts 79 | 10 37 32 . . Haulers Intercepted 2 | . 2 . . . Recyclers Shooed 1 | . 1 . . . Parts Field Recycled . | . . . . . Retrieved Matter . | . . . . . Parts Self-Destructed . | . . . . . Prevented . | . . . . . Parts Restored . | . . . . . Kills | -11 -10 -10 -10 -9 ------- Run | Yrd Mat Min Exi Min Combat Hostiles Destroyed 26 | . 12 13 . 1 Guns 8 | . 8 . . . Cannons 17 | . 3 13 . 1 Classes Destroyed 10 | 2 7 . . 1 Worker 2 | . 1 1 . . Builder 1 | . 1 . . . Tunneler 2 | 2 . . . . Hauler 2 | . 2 . . . Recycler 4 | 1 1 2 . . Operator 1 | . 1 . . . Watcher 1 | . 1 . . . Swarmer 14 | . 5 9 . . Grunt 11 | . 7 4 . . Assembled 1 | . . . . 1 Best Kill Streak 6 | 2 4 6 . 1 Combat Bots Only 6 | . 3 6 . 1 Max Kills in Single Turn 2 | 1 1 2 . 1 Gunslinging . | . . . . . Exploded . | . . . . . Melee . | . . . . . Uniques/NPCs Destroyed . | . . . . . Combat | -11 -10 -10 -10 -9 -------- Run | Yrd Mat Min Exi Min Hostile Shots Fired 163 | . 72 47 . 44 Missed 57 | . 27 18 . 12 Hits 106 | . 45 29 . 32 Melee 6 | . . . . 6 Projectile 100 | . 45 29 . 26 Critical Strikes 1 | . . 1 . . Damage Taken 1338 | . 454 299 . 585 Core 250 | . 78 56 . 116 Absorbed by Shields . | . . . . . Ignored by Resistances 16 | . . . . 16 Core Remaining (%) 100 | 100 . . . . Volleys Fired 99 | 6 59 29 . 5 Largest 2 | 2 2 2 . 1 Hottest 120 | 70 115 120 . 60 Shots Fired 192 | 12 118 58 . 4 Gun 119 | 12 103 4 . . Cannon 73 | . 15 54 . 4 Launcher . | . . . . . Special . | . . . . . Kinetic 20 | 6 14 . . . Thermal 172 | 6 104 58 . 4 Explosive . | . . . . . Electromagnetic . | . . . . . Robot Hit Streak 12 | 3 7 12 . 2 Robot Miss Streak 5 | 2 5 3 . 1 Penetration Max . | . . . . . Secondary Targets 1 | . 1 . . . Max Gunslinging Chain 1 | . 1 . . . Shots Hit Robots 113 | 7 66 37 . 3 Core Hits 52 | 4 28 18 . 2 Critical Kills . | . . . . . Critical Parts Destroyed . | . . . . . Critical Strikes 10 | 1 9 . . . Burn 10 | 1 9 . . . Melee Attacks 4 | . 4 . . . Impact 4 | . 4 . . . Slashing . | . . . . . Piercing . | . . . . . Sneak Attacks 1 | . 1 . . . Combat Hostiles . | . . . . . Follow-up Attacks . | . . . . . Damage Inflicted 1822 | 84 1004 681 . 53 Guns 917 | 84 794 39 . . Cannons 843 | . 148 642 . 53 Explosions . | . . . . . Melee 62 | . 62 . . . Ramming . | . . . . . Kinetic 126 | 21 105 . . . Thermal 1634 | 63 837 681 . 53 Explosive . | . . . . . Electromagnetic . | . . . . . Impact 62 | . 62 . . . Slashing . | . . . . . Piercing . | . . . . . Highest Corruption 4 | . 2 2 2 4 Average Corruption 2 | . 2 2 2 3 Corruption Purged . | . . . . . Corruption Blocked . | . . . . . Effects 22 | . 2 10 8 2 Message Errors 3 | . . 1 2 . Matter Fused 7 | . 1 3 3 . Heat Flow Errors 2 | . . 1 1 . Energy Discharges 3 | . . 3 . . Data Loss (minor) 4 | . 1 1 1 1 Data Loss (major) 2 | . . 1 1 . Weapon Failures 1 | . . . . 1 Overload Shots . | . . . . . Overflow Damage 27 | . 11 16 . . Projectiles 17 | . 1 16 . . Explosions . | . . . . . Melee 10 | . 10 . . . Knockbacks 1 | . 1 . . . Impact 1 | . 1 . . . Kinetic . | . . . . . Secondary . | . . . . . Self-Inflicted Damage . | . . . . . Shots . | . . . . . Rammed . | . . . . . Targets Rammed . | . . . . . Kicked . | . . . . . Crushed . | . . . . . Highest Temperature 246 | 45 144 246 157 56 Average Temperature 42 | 20 27 72 80 32 Received Heat Transfer 375 | . 150 99 . 126 Siege Activations . | . . . . . Martial Activations . | . . . . . Shielding Activations . | . . . . . Robots Disrupted . | . . . . . Combat Hostiles . | . . . . . Robots Corrupted . | . . . . . Combat Hostiles . | . . . . . Parts Fried . | . . . . . Impact Corruptions 1 | . 1 . . . Robots Melted 1 | . 1 . . . Combat Hostiles 1 | . 1 . . . Parts Melted 7 | 1 3 3 . . Heat Transferred 4662 | 259 2849 1443 . 111 Parts Sabotaged . | . . . . . Parts Stolen . | . . . . . Parts Stripped . | . . . . . Power Chain Reactions . | . . . . . Alert | -11 -10 -10 -10 -9 ------- Run | Yrd Mat Min Exi Min Maximum Alert Level . | . . . . . Low Security (%) 100 | 100 100 100 . 100 Level 1 . | . . . . . Level 2 . | . . . . . Level 3 . | . . . . . Level 4 . | . . . . . Level 5 . | . . . . . High Security . | . . . . . Max Security . | . . . . . Peak Influence 188 | 10 188 132 . . Initial 28 | . . 28 . . Average 32 | 1 36 30 . . Influence Increases 836 | 15 449 372 . . Destroy 0b10 Robot/C 520 | . 240 280 . . Destroy 0b10 Robot/NC 65 | 15 35 15 . . Destroy Leader 116 | . 56 60 . . Allied During Kill 2 | . . 2 . . Successful Hack 10 | . 10 . . . Select Force Hacks 60 | . 60 . . . Disable Machine 30 | . 15 15 . . Destroy Structure 3 | . 3 . . . Lose Combat Pursuer 30 | . 30 . . . Influence Decreases 836 | 15 374 347 100 . Entered New Map 147 | . . 47 100 . Time Decay 652 | 15 374 263 . . Lost Ally 37 | . . 37 . . Squads Dispatched 3 | . 3 . . . Investigation 2 | . 2 . . . Extermination . | . . . . . Reinforcement 1 | . 1 . . . Assault . | . . . . . Garrison . | . . . . . Intercept . | . . . . . Searches Triggered . | . . . . . Construction Impeded . | . . . . . Haulers Reinforced . | . . . . . Active Scanning Responses . | . . . . . Cargo Convoy Interrupts . | . . . . . Stealth | -11 -10 -10 -10 -9 --------- Run | Yrd Mat Min Exi Min Distress Signals . | . . . . . Communications Jammed . | . . . . . Distress Signals . | . . . . . Times Spotted 52 | . 33 13 . 6 Peak Tracking Total 6 | . 6 5 . 6 Tactical Retreats 2 | . 1 . . 1 Traps | -11 -10 -10 -10 -9 ------- Run | Yrd Mat Min Exi Min Traps Triggered 1 | . 1 . . . Indirectly . | . . . . . Trap Hack Attempts . | . . . . . Triggered . | . . . . . Disarmed 6 | . 6 . . . Reprogrammed . | . . . . . Reused . | . . . . . Traps Extracted . | . . . . . Installed . | . . . . . Triggered . | . . . . . Machines | -11 -10 -10 -10 -9 ---------- Run | Yrd Mat Min Exi Min Machines Disabled 2 | . 1 1 . . Max in Single Turn 1 | . 1 1 . . Machines Repaired . | . . . . . Machines Dismantled . | . . . . . Machines Sabotaged . | . . . . . Overloaded Fab Kills . | . . . . . Hacking | -11 -10 -10 -10 -9 --------- Run | Yrd Mat Min Exi Min Machines Accessed 12 | . 9 1 2 . Terminals 6 | . 6 . . . Fabricators . | . . . . . Repair Stations 1 | . 1 . . . Recycling Units 2 | . 2 . . . Scanalyzers . | . . . . . Garrison Access . | . . . . . Total Hacks 29 | . 26 1 2 . Successful 15 | . 12 1 2 . Failed 14 | . 14 . . . Catastrophic 1 | . 1 . . . Database Lockouts . | . . . . . Manual 19 | . 18 . 1 . Terminals 20 | . 20 . . . Fabricators . | . . . . . Repair Stations 2 | . 2 . . . Recycling Units 4 | . 4 . . . Scanalyzers . | . . . . . Garrison Access . | . . . . . Terminal Hacks 9 | . 6 1 2 . Record 1 | . . . 1 . Robot Schematic 1 | . 1 . . . Robot Analysis 2 | . 2 . . . Open Door 1 | . . 1 . . Unreport Threat 1 | . 1 . . . Locate Traps 1 | . 1 . . . Disarm Traps 1 | . 1 . . . Proto ID Catalog 1 | . . . 1 . Fabricator Hacks . | . . . . . Repair Station Hacks 1 | . 1 . . . Scan Component 1 | . 1 . . . Recycling Unit Hacks 1 | . 1 . . . Retrieve Components 1 | . 1 . . . Scanalyzer . | . . . . . Garrison Access Hacks . | . . . . . Unauthorized Hacks 4 | . 4 . . . Terminals 2 | . 2 . . . Botnet 2 | . 2 . . . Fabricators . | . . . . . Repair Stations . | . . . . . Recycling Units 2 | . 2 . . . Tunnel 2 | . 2 . . . Scanalyzers . | . . . . . Garrison Access . | . . . . . Data Cores Recovered . | . . . . . Used . | . . . . . Hacking Detections 8 | . 8 . . . Full Trace Events . | . . . . . Feedback Events . | . . . . . Feedback Blocked . | . . . . . Robot Schematics Acquired 1 | . 1 . . . Robots Built . | . . . . . Authchips . | . . . . . Time . | . . . . . Total Robot Build Rating . | . . . . . Part Schematics Acquired . | . . . . . Parts Built . | . . . . . Authchips . | . . . . . Time . | . . . . . Total Part Build Rating . | . . . . . Part Studies Acquired . | . . . . . Parts Repaired . | . . . . . Time . | . . . . . Parts Recycled . | . . . . . Recycled Matter . | . . . . . Retrieved Matter . | . . . . . Retrieved Components 8 | . 8 . . . Parts Scanalyzed . | . . . . . Part Schematics Acquired . | . . . . . Parts Damaged . | . . . . . Bothacking | -11 -10 -10 -10 -9 ------------ Run | Yrd Mat Min Exi Min Used RIF Installer . | . . . . . Robots Hacked . | . . . . . Non-combat . | . . . . . Combat . | . . . . . Robot Hacks Applied . | . . . . . Relay Couplers Released . | . . . . . Fabnet Peak Effective % . | . . . . . Robots Rewired . | . . . . . Allies Hacked . | . . . . . Hacks Repelled . | . . . . . Allies | -11 -10 -10 -10 -9 -------- Run | Yrd Mat Min Exi Min Total Allies 2 | . . 2 . . Largest Group 2 | . . 2 . . Highest-Rated Group 39 | . . 39 . . Highest-Rated Ally 31 | . . 31 . . Total Orders . | . . . . . Ally Attacks 8 | . . 8 . . Total Damage 85 | . . 85 . . Kills 1 | . . 1 . . Allies Corrupted . | . . . . . Allies Melted . | . . . . . Intel | -11 -10 -10 -10 -9 ------- Run | Yrd Mat Min Exi Min Active Infowar (turns) . | . . . . . Robot Analysis Total 2 | . 2 . . . Derelict Logs Recovered . | . . . . . Drone Launches . | . . . . . Drone Recoveries . | . . . . . Exploration | -11 -10 -10 -10 -9 ------------- Run | Yrd Mat Min Exi Min Turns Passed 4081 | 118 2171 789 903 100 Spaces Moved 1645 | 55 868 287 373 62 Core 7 | 7 . . . . Treads 1581 | 48 868 287 373 5 Legs . | . . . . . Wheels 57 | . . . . 57 Hover . | . . . . . Flight . | . . . . . Fastest Speed 50 | 50 160 240 240 110 Average Speed 219 | 146 215 240 240 133 Slowest Speed 240 | 160 240 240 240 240 Overloaded Moves . | . . . . . Propulsion Burnouts . | . . . . . Robots Hopped . | . . . . . Potential Cave-ins . | . . . . . Cave-ins Triggered . | . . . . . Exploration Rate (%) 47 | 4 94 58 61 18 Regions Visited 4 Branch Regions 3 Pre-discovered Areas 3 | . 2 . 1 . Known Exits Taken . | . . . . . Unknown Exits Taken 4 | 1 1 1 1 . Scrap Searched 1 | . . 1 . . Spaces Dug . | . . . . . Terrain Destroyed . | . . . . . Melee . | . . . . . Projectile . | . . . . . AOE . | . . . . . Terrain Rammed . | . . . . . Walls Destroyed . | . . . . . Machines Disabled . | . . . . . Actions | -11 -10 -10 -10 -9 --------- Run | Yrd Mat Min Exi Min Total 1919 | 77 1046 335 385 76 Wait 93 | 2 90 . 1 . Move 1641 | 54 867 286 372 62 Hop . | . . . . . Pick Up 33 | 8 13 6 6 . Fast Attach 8 | 7 1 . . . Attach 5 | . . . . 5 Detach 1 | . . 1 . . Swap 12 | . 7 4 . 1 Drop 23 | . 5 9 6 3 Fire 99 | 6 59 29 . 5 Melee 4 | . 4 . . . Ram . | . . . . . Kick . | . . . . . Crush . | . . . . . Escape Stasis . | . . . . . Rewire . | . . . . . Trap . | . . . . . Miscellaneous . | . . . . . Route ------- -11/Scrapyard -10/Materials (discovered 4 exits: [*Mat x3] / *Min) -10/Mines (discovered 2 exits: [*Mat] / *Exi) -10/Exiles -9/Mines History --------- Turn | Location | Event 8 | -11/Scrapyard | Discovered new exit (range 15) 119 | -11/Scrapyard | Entered Materials 300 | -10/Materials | Build established: Mutant 962 | -10/Materials | Discovered new exit (range 3) 1319 | -10/Materials | Build established: Scavenger-Mutant 1372 | -10/Materials | Discovered new exit (range 7) 1478 | -10/Materials | Discovered new exit (range 3) 1803 | -10/Materials | Build established: Mutant 1923 | -10/Materials | Discovered new exit (range 14) 2290 | -10/Materials | Entered Mines 2491 | -10/Mines | Core integrity fell below 50% 2507 | -10/Mines | Met a Derelict who couldn't figure out how to use a Trap Extractor 2599 | -10/Mines | Discovered new exit (range 5) 2873 | -10/Mines | A weapon hastily lodged in a ceiling crevice suddenly fell to the ground 3067 | -10/Mines | Deemed a non-threat by the Exiles lab entrance 3067 | -10/Mines | Discovered new exit (range 5) 3079 | -10/Mines | Entered Exiles 3153 | -10/Exiles | Met 8R-AWN 3193 | -10/Exiles | Met EX-HEX 3268 | -10/Exiles | Met EX-BIN 3342 | -10/Exiles | Met EX-DEC 3352 | -10/Exiles | Learned location of Zion (-6) 3515 | -10/Exiles | Aligned with FarCom system 3517 | -10/Exiles | Given EX-Vault access code 3573 | -10/Exiles | Opened EX-Vault 3587 | -10/Exiles | Found Trap Reconfigurator 3638 | -10/Exiles | Warned to stay clear of 0b10 Research branches 3866 | -10/Exiles | Discovered new exit (range 14) 3982 | -10/Exiles | Left Exiles lab with Trap Reconfigurator 3982 | -10/Exiles | Entered Mines 4000 | -9/Mines | Core integrity fell below 20% 4012 | -9/Mines | Assembled infested the area 4082 | -9/Mines | Destroyed by as-89707 with Assembled Heavy Rifle Last Messages --------------- 03986_ Rigged Rnf. Deuterium Engine explodes. 03986_ Pulverizer disabled. 03990_ Dropped Rigged Nuclear Core. 03990_ Imp. Heat Sink destroyed. 03990_ System corrupted by crushing effect (+1). 03993_ Rigged Nuclear Core explodes. 03995_ Dropped Rigged Fission Core. 03996_ Lgt. Treads destroyed. 03999_ Rigged Fission Core explodes. 04012_ ALERT: Infestation in the mines, dispatching Demolisher response squad. 04036_ System corrupted: Component data lost. 04046_ Wheel destroyed. 04046_ System corrupted by crushing effect (+1). 04064_ Beam Cannon destroyed. 04065_ G-34 Mercenary destroyed. 04068_ B-36 Bruiser destroyed. 04073_ System corrupted: Beam Cannon failed to cycle. 04081_ as-83193 destroyed. Map ----- +----------------------------------------------------+ | | | | | | | | | | | ?????????????????????????????????????????????????? | | ?????????????????????????????????????????????????? | | ?????????????????????????????????????????????????? | | ?????????????????????????????????????????????????? | | ?????????????????????????????????????????????????? | | ?????????????????????????????????????????????????? | | ?????????????????????????????????????????????????? | | ?????????????????????????????????????????????????? | | ?????????????????????????????????????????????????? | | ?????????????????????????????????????????????????? | | ?????????????????????????????????????????????????? | | ?????????????????????????????????????????????????? | | ?????????????? ??????????????????????????????????? | | ?????????????? ?????????????????????????????????? | | ??????????????? ???????????????????????????????? | | ????????????????% ???????????######?????????????? | | ?????????????????? ?????????## ##????????????? | | ??????????????????? ????#### #????????????? | | ????????????????????? ??## #????????????? | | ??????????????????????# ## ##???????????# | | ??????????????????????# @ #???????????# | | ??????????????????????####a #???????????# | | ?????????????????????????# a ##??????????? | | ????????????????????????## ####????????????# | | ???????????????????????## % ##???????????????# | | ??????????????????????## ######????????#### | | ??????????????????????# ## ##????####"" | | ????????????????####### = #????# | | ????????????????# *%! ###### | | ????????????????# ## ##"" | | ????????????????# ########### #? | | ????????????????# #?????????# ########??# | | ????????????????# #?????????# ## #?????????? | | ????????????????# #?????????# #### #?????????? | | ????????????????#*#?????????# #??# #????????? | | ????????????????#%#?????????## ##??# #???????? | | ????????????????#=#??????????###???## ???????? | | ????????????????# ?????????????????## ??????? | | ???????????????? ??????????????????? ##?????? | | ???????????????? ??????????????????? ##??????? | | ???????????????? ???????????????????####???????? | | ???????????????? ??????????????????????????????? | | ????????????????# ??????????????????????????????? | | ?????????????????# ??????????????????????????????? | | ??????????????????#??????????????????????????????? | +----------------------------------------------------+ Best States ------------- Heat Dissipation 39 Energy Generation 14 Energy Capacity 250 Matter Stores 300 Matter Capacity 300 Sight Range 16 Terrain Scan Density 10 Armor Coverage 150 Resistance: TH 10 Evasion (%) 40 Recoil Reduction 2 Item Schematics ----------------- None Robot Schematics ------------------ M-13 Machinist | -10/Materials | Hacked Fabricated ------------ Nothing Repaired ---------- Nothing Studied --------- None Alien Tech Used ----------------- None Achievements -------------- None Challenges ------------ None Game ------ Seed GyrokineticDamperCasing Manual? 0 Play Time 00:21:13 Cumulative 793.0 hours Start 2026.08.31 @ 19:16:04 End 2026.08.31 @ 19:35:54 Sessions 1 Manual Loads 0 Difficulty Rogue Special Mode None Game No. 201 Rogue 63 Adventurer 138 Explorer 0 Win Type - Total 12 Types 8/0/1/2/0/0/0/0/1/0 Lore% 80 Gallery% 75 Achievement% 58 Wizard Run 0 Options --------- Layout 2 ASCII 0 Keyboard 0 Movement Mouse Keybinds 0 Fullscreen 1 Font 24/Smallcaps Map View 50x49 Zoom Use 14% Tactical HUD 1 Map Filters NONE Filters NONE Steam 1 RUN: 320bc017-6c03-49eb-a802-57c1914a9003